bitfinex/quotes_ETHUSD_20240718
["timestamp","ask_amount","ask_price","bid_price","bid_amount"]
[1721326754449,3.464646,3399.0,3398.4,2.94255]
[1721326754763,2.2838,3399.9,3398.5,2.3299]
[1721326754948,2.94175,3399.4,3398.7,2.94224]
[1721326755326,2.94175,3399.4,3398.5,5.27234]
[1721326755327,2.94175,3399.4,3398.6,2.94237]
[1721326755623,2.94192,3399.2,3398.6,2.94237]
[1721326756061,2.94175,3399.4,3398.7,2.94224]
[1721326756233,0.588329,3399.3,3398.7,2.94224]
[1721326756428,0.588329,3399.3,3398.9,2.94212]
[1721326756750,2.9416,3399.5,3398.9,2.94212]
[1721326757465,2.9417,3399.4,3398.7,2.94223]
[1721326758227,2.94179,3399.3,3398.7,2.94223]
[1721326758419,2.94167,3399.5,3398.8,2.94221]
[1721326758623,2.94155,3399.6,3398.8,2.94221]
[1721326758850,3.594155,3399.5,3398.8,2.94221]
[1721326759158,2.9417,3399.4,3398.8,2.94221]
[1721326759459,2.9415,3399.7,3398.9,2.94212]
[1721326759664,2.2838,3399.9,3399.2,2.94181]
[1721326759665,2.94131,3399.9,3399.2,2.94181]
[1721326759955,4.97877,3400.5,3398.6,2.94237]
[1721326759956,2.94144,3399.7,3399.0,5.88398]
[1721326760179,2.9418,3399.3,3398.5,2.3299]
[1721326760479,2.9413,3399.9,3398.5,2.94242]
[1721326760480,2.94206,3399.0,3398.5,2.94242]
[1721326760642,3.530467,3399.0,3398.5,2.94242]
[1721326760970,2.94192,3399.2,3398.5,2.94242]
[1721326761138,2.94192,3399.2,3398.6,2.94237]
[1721326761653,2.94197,3399.1,3398.6,2.94237]
[1721326761824,2.94197,3399.1,3398.4,2.94249]
[1721326762332,2.94197,3399.1,3398.5,2.94242]
[1721326762530,2.94197,3399.1,3398.5,2.9424]
[1721326762871,2.94149,3399.7,3398.6,2.4308]
[1721326763173,2.94149,3399.7,3399.0,2.94198]
[1721326763174,3.0,3399.6,3399.0,2.94198]
[1721326763372,2.94129,3399.9,3399.1,2.94191]
[1721326763730,2.94129,3399.9,3398.7,0.55]
[1721326763931,2.94112,3400.1,3399.5,2.9416]
[1721326764152,2.94112,3400.1,3399.2,2.94179]
[1721326764153,2.94112,3400.1,3399.3,2.94171]
[1721326764443,2.94118,3400.0,3399.3,2.94171]
[1721326764975,2.94127,3399.9,3399.3,2.94171]
[1721326765377,2.94112,3400.1,3399.4,2.94168]
[1721326765543,7.071587,3400.0,3399.4,2.94168]
[1721326766854,7.071587,3400.0,3399.4,5.29158]
[1721326767295,7.071587,3400.0,3399.4,2.94168]
[1721326767496,3.0,3400.0,3399.5,2.94159]
[1721326767705,3.0,3400.2,3399.5,2.94159]
[1721326768198,2.94111,3400.1,3399.5,2.94159]
[1721326768359,3.0,3400.0,3399.5,2.94159]
[1721326768565,3.0,3400.2,3399.6,2.94151]
[1721326769202,3.0,3400.2,3399.8,2.94133]
[1721326769522,3.0,3400.4,3399.8,2.94133]
[1721326769728,3.594077,3400.4,3399.8,2.94133]
[1721326770129,6.534917,3400.4,3399.8,2.94133]
[1721326770488,2.94092,3400.3,3399.8,2.94133]
[1721326770693,3.594077,3400.4,3399.8,2.94133]
[1721326771003,6.534917,3400.4,3399.8,2.94133]
[1721326771217,3.8884787,3400.3,3399.8,2.94133]
[1721326771414,0.9475687,3400.3,3399.8,2.94133]
[1721326772131,3.0,3400.4,3399.9,2.94124]
[1721326772439,2.94077,3400.5,3399.9,2.94124]
[1721326773591,2.94061,3400.7,3400.1,2.94107]
[1721326773793,2.4024,3400.8,3400.2,2.94098]
[1721326774029,2.94049,3400.8,3400.2,2.94098]
[1721326774229,3.29523806,3400.8,3400.2,2.94098]
[1721326774529,3.29523806,3400.8,3400.3,2.9409]
[1721326775026,3.29523806,3400.8,3400.2,2.94099]
[1721326775191,3.0,3400.7,3400.2,2.94099]
[1721326775391,3.0,3400.7,3400.3,2.94089]
[1721326775624,0.35474806,3400.8,3400.3,2.94089]
[1721326776030,5.36013447,3401.2,3399.7,2.7511]
[1721326776230,5.36013447,3401.2,3400.5,2.94068]
[1721326776231,5.94022,3401.1,3400.5,2.94068]
[1721326776789,5.94022,3401.1,3400.3,2.94087]
[1721326776790,3.0,3401.1,3400.3,2.94087]
[1721326777127,2.9404,3400.9,3400.3,2.94087]
[1721326777332,2.94036,3401.0,3400.3,2.94087]
[1721326777333,2.94032,3401.0,3400.4,2.94079]
[1721326778027,5.88071,3401.0,3400.2,2.94093]
[1721326778323,5.88071,3401.0,3400.3,2.94085]
[1721326778324,2.94032,3401.0,3400.3,2.94085]
[1721326778526,2.94032,3401.0,3400.4,2.94081]
[1721326779032,3.0,3401.1,3400.4,5.889084]
[1721326779219,3.0,3401.1,3400.6,2.94064]
[1721326779735,5.94022,3401.1,3400.5,2.94072]
[1721326780444,8.88053,3401.1,3400.5,2.94072]
[1721326780598,8.39282,3401.1,3400.2,2.94096]
[1721326780933,5.4526,3401.1,3400.5,2.94072]
[1721326781133,2.94033,3401.0,3400.3,3.234926]
[1721326781342,2.4526,3401.1,3400.3,0.294096]
[1721326781632,2.94031,3401.0,3400.3,3.235006]
[1721326781796,2.94031,3401.0,3400.4,3.5584156]
[1721326782197,5.88069,3401.0,3400.4,3.5584156]
[1721326782399,2.94031,3401.0,3400.4,3.5584156]
[1721326782939,2.9404,3400.9,3400.4,0.6175956]
[1721326783236,2.9404,3400.9,3400.3,0.294096]
[1721326784401,2.9406,3400.7,3400.1,2.94103]
[1721326784618,2.9406,3400.7,3400.0,2.94113]
[1721326784619,2.94071,3400.6,3400.0,2.94116]
[1721326784941,5.88144,3400.6,3400.0,2.94116]
[1721326785134,2.94063,3400.7,3400.0,4.49199951]
[1721326785331,2.94052,3400.8,3400.0,4.49199951]
[1721326785332,2.94072,3400.6,3400.0,4.49199951]
[1721326785534,2.94072,3400.6,3400.0,7.43311951]
[1721326785763,2.94072,3400.6,3400.1,2.94107]
[1721326785951,2.94072,3400.6,3400.1,3.68437695]
[1721326786485,2.94034,3401.0,3400.1,0.74330695]
[1721326786765,2.94034,3401.0,3400.3,5.88171]
[1721326786966,5.88072,3401.0,3400.3,2.94085]
[1721326787326,2.94034,3401.0,3400.3,2.94085]
[1721326787523,2.94039,3400.9,3400.3,2.94085]
[1721326788026,2.9405,3400.8,3400.3,2.94085]
[1721326789262,2.94034,3401.0,3400.3,3.68411995]
[1721326789867,2.4526,3401.1,3400.0,1.55090951]
[1721326790168,2.94088,3400.4,3399.8,2.94129]
[1721326790367,2.94088,3400.4,3399.8,5.88258]
[1721326790535,2.94069,3400.6,3399.8,2.94129]
[1721326790863,2.94069,3400.6,3400.0,2.94112]
[1721326791065,2.94069,3400.6,3400.0,4.52148451]
[1721326791367,2.94074,3400.5,3400.0,4.52148451]
[1721326792378,2.94069,3400.6,3400.1,2.94107]
[1721326792775,2.94074,3400.5,3400.0,1.58036451]
[1721326793133,2.94074,3400.5,3400.0,4.52152451]
[1721326793370,2.94052,3400.8,3400.1,2.94107]
[1721326793739,2.94066,3400.6,3400.1,2.94107]
[1721326793941,2.94066,3400.6,3400.1,3.68733145]
[1721326794672,2.4526,3401.1,3400.1,3.68733145]
[1721326794673,2.94074,3400.5,3400.1,0.74626145]
[1721326795640,2.9407,3400.6,3400.1,3.68733145]
[1721326795868,2.94056,3400.8,3400.1,3.68733145]
[1721326796059,2.94056,3400.8,3400.2,2.94095]
[1721326796652,5.88111,3400.8,3400.2,2.94095]
[1721326796871,2.94055,3400.8,3400.2,2.94095]
[1721326797181,5.88111,3400.8,3400.2,2.94095]
[1721326797476,2.94055,3400.8,3400.3,2.94085]
[1721326797685,2.94055,3400.8,3400.3,3.529042]
[1721326798139,2.94039,3400.9,3400.4,2.94082]
[1721326798580,2.94019,3401.2,3400.3,0.588192]
[1721326798790,3.0,3401.1,3400.6,2.94064]
[1721326799109,2.93998,3401.4,3400.6,2.94064]
[1721326799309,2.93983,3401.6,3400.8,2.94042]
[1721326799462,2.93983,3401.6,3400.4,2.6274]
[1721326799463,2.93983,3401.6,3401.1,2.94021]
[1721326799663,2.93983,3401.6,3401.0,2.94026]
[1721326800340,2.93983,3401.6,3401.0,2.94025]
[1721326800543,2.93983,3401.6,3401.1,2.94021]
[1721326800944,5.87934,3401.8,3401.1,2.94021]
[1721326801177,2.93965,3401.8,3401.2,2.94008]
[1721326801507,2.038,3402.5,3401.2,2.94008]
[1721326801508,2.038,3402.9,3401.3,2.3942]
[1721326801643,2.93873,3402.9,3402.1,2.93929]
[1721326801974,2.4744,3403.2,3402.3,2.93917]
[1721326801975,2.93863,3403.0,3402.3,2.93917]
[1721326802156,5.41286,3403.2,3402.0,2.3942]
[1721326802358,1.82031907,3404.5,3401.6,2.93975]
[1721326802359,2.9382,3403.5,3402.7,2.93877]
[1721326802674,2.9382,3403.5,3402.8,2.93868]
[1721326802675,0.587634,3403.5,3402.8,2.93868]
[1721326802850,2.93814,3403.6,3402.8,2.93868]
[1721326803279,2.93789,3403.8,3402.9,2.9386]
[1721326803481,2.93773,3404.0,3402.7,2.93879]
[1721326803746,2.93773,3404.0,3403.2,2.93835]
[1721326803747,2.93781,3403.9,3403.2,2.93835]
[1721326803968,2.93773,3404.0,3403.4,2.93823]
[1721326804177,0.587528,3403.9,3403.4,2.93823]
[1721326805091,2.93755,3404.2,3403.2,2.93834]
[1721326805277,2.93763,3404.1,3403.2,2.93834]
[1721326805581,2.93788,3403.9,3403.3,2.93832]
[1721326806105,2.93763,3404.1,3403.4,2.93822]
[1721326806248,3.0,3404.0,3403.4,2.93822]
[1721326806448,3.0,3404.0,3403.1,2.333]
[1721326806449,2.93748,3404.3,3403.1,2.333]
[1721326806760,2.93748,3404.3,3403.7,2.93797]
[1721326807263,2.93748,3404.3,3403.4,2.93816]
[1721326807264,2.93748,3404.3,3403.5,2.93808]
[1721326807603,2.9376,3404.2,3403.5,2.93808]
[1721326807744,2.93738,3404.4,3403.5,2.93808]
[1721326807745,2.93763,3404.1,3403.5,2.93808]
[1721326807946,2.93752,3404.3,3403.6,2.93806]
[1721326808149,3.88749,3404.2,3403.6,2.93806]
[1721326808498,2.93752,3404.3,3403.6,2.93806]
[1721326809193,2.93725,3404.6,3403.6,2.93806]
[1721326809491,3.0,3404.7,3403.2,3.9436]
[1721326809782,2.93705,3404.8,3404.1,2.93756]
[1721326809983,2.93734,3404.5,3403.8,2.93788]
[1721326810291,2.93746,3404.3,3403.6,2.93806]
[1721326810493,2.93756,3404.2,3403.6,2.93806]
[1721326810676,2.93756,3404.2,3403.3,2.93831]
[1721326810677,2.93778,3404.0,3403.3,2.93831]
[1721326811058,2.93756,3404.2,3403.2,3.783]
[1721326811263,2.93756,3404.2,3403.5,2.93814]
[1721326811474,3.231054,3404.5,3403.8,2.93788]
[1721326811658,2.93732,3404.5,3403.6,2.93803]
[1721326811862,2.93732,3404.5,3403.9,2.9378]
[1721326812060,2.93712,3404.7,3403.9,2.9378]
[1721326812275,2.93703,3404.8,3404.2,2.93754]
[1721326812453,5.93712,3404.7,3404.0,2.93765]
[1721326812651,5.93712,3404.7,3404.1,2.93763]
[1721326813302,2.2926,3406.1,3404.6,2.9372]
[1721326813587,2.93627,3405.7,3404.8,2.93695]
[1721326814087,2.93658,3405.4,3404.8,2.93695]
[1721326814860,2.93645,3405.5,3404.9,2.93692]
[1721326815166,2.93661,3405.3,3404.6,2.93717]
[1721326815476,2.93661,3405.3,3404.7,2.9371]
[1721326815675,3.52372,3405.5,3404.8,2.93702]
[1721326815888,2.93652,3405.4,3404.8,2.93702]
[1721326816247,2.93643,3405.5,3404.9,2.93692]
[1721326817264,2.2926,3406.1,3405.2,2.93667]
[1721326817265,2.93611,3405.9,3405.2,2.93667]
[1721326817500,2.93611,3405.9,3404.9,2.997903]
[1721326817501,5.5743797,3406.6,3405.3,2.93651]
[1721326817806,2.93603,3406.0,3405.3,2.93651]
[1721326818004,2.93603,3406.0,3405.4,2.93651]
[1721326818214,2.93585,3406.2,3405.4,2.93651]
[1721326818365,0.1473997,3406.6,3404.9,5.934783]
[1721326818366,0.1473997,3406.6,3405.8,2.9361]
[1721326818566,2.93576,3406.3,3405.5,2.3919]
[1721326818762,2.93576,3406.3,3405.6,0.55]
[1721326819093,0.1473997,3406.6,3405.9,2.93606]
[1721326819615,3.0828897,3406.6,3405.7,3.23085]
[1721326819812,3.0828897,3406.6,3405.8,1.167275]
[1721326820018,3.0828897,3406.6,3406.0,2.93599]
[1721326820202,3.0828897,3406.6,3405.8,1.167275]
[1721326820203,0.1473997,3406.6,3405.8,1.167275]
[1721326820405,0.1473997,3406.6,3405.4,0.2946]
[1721326820713,0.1473997,3406.6,3405.3,3.0]
[1721326820714,2.93605,3406.0,3405.3,2.93654]
[1721326821177,2.93576,3406.3,3405.7,2.93617]
[1721326821518,3.0829097,3406.6,3405.2,3.0]
[1721326821519,2.93561,3406.5,3405.9,2.93605]
[1721326821920,2.93565,3406.4,3405.7,2.93619]
[1721326822085,2.93565,3406.4,3405.6,2.93627]
[1721326822086,2.93585,3406.2,3405.6,2.93627]
[1721326822284,2.93565,3406.4,3405.7,2.93624]
[1721326822597,3.0829097,3406.6,3405.8,0.55]
[1721326823115,2.93557,3406.5,3405.9,2.93606]
[1721326823597,2.93567,3406.4,3405.7,2.93618]
[1721326823919,2.93596,3406.1,3405.6,0.2946]
[1721326824222,0.1473997,3406.6,3405.6,0.2946]
[1721326824223,3.0828897,3406.6,3405.7,2.93619]
[1721326824428,3.0828897,3406.6,3405.8,3.864189]
[1721326824732,2.93563,3406.5,3405.8,3.48616]
[1721326825039,3.0828897,3406.6,3405.9,2.93605]
[1721326825535,3.0828897,3406.6,3406.0,2.93591]
[1721326825831,0.1473997,3406.6,3406.1,2.93589]
[1721326826034,0.1473997,3406.6,3406.4,2.93559]
[1721326826203,0.1473997,3406.6,3406.5,2.93556]
[1721326826593,0.1473997,3406.6,3406.5,4.127694]
[1721326826799,0.1473997,3406.6,3406.5,1.192134]
[1721326827440,0.1473997,3406.6,3406.5,7.063254]
[1721326827822,2.93463,3407.6,3407.1,2.93504]
[1721326828030,2.93463,3407.6,3406.6,0.2946]
[1721326828031,2.93501,3407.2,3406.6,0.2946]
[1721326828232,2.93501,3407.2,3406.5,1.192134]
[1721326828233,2.93501,3407.2,3406.5,0.55]
[1721326828535,2.93481,3407.4,3406.7,2.93538]
[1721326828737,2.93481,3407.4,3406.8,2.9353]
[1721326829032,5.19442,3408.0,3406.9,2.93516]
[1721326829033,2.93475,3407.5,3406.9,2.93516]
[1721326829249,2.93479,3407.4,3406.9,0.55]
[1721326829404,2.93482,3407.4,3406.9,1.48016134]
[1721326830460,2.93482,3407.4,3406.9,0.55]
[1721326830757,2.93482,3407.4,3406.7,3.48531]
[1721326830758,2.93488,3407.3,3406.7,3.48531]
[1721326830938,2.93476,3407.5,3406.7,3.48531]
[1721326831136,2.93476,3407.5,3406.9,2.93521]
[1721326831334,2.2601,3408.0,3406.7,3.48531]
[1721326831335,2.93482,3407.4,3406.7,3.48531]
[1721326831541,2.93501,3407.2,3406.8,0.65695034]
[1721326832063,2.93482,3407.4,3406.9,0.05157498]
[1721326832576,2.93487,3407.3,3406.9,0.05157498]
[1721326832725,2.93482,3407.4,3406.9,0.05157498]
[1721326833655,2.93513,3407.0,3406.9,0.05157498]
[1721326833827,2.93501,3407.2,3406.9,0.05157498]
[1721326834039,2.93501,3407.2,3406.4,5.69929]
[1721326834223,2.93501,3407.2,3406.6,2.93545]
[1721326834558,2.93501,3407.2,3406.7,1.51962753]
[1721326834759,2.93501,3407.2,3406.7,0.96962753]
[1721326834976,2.93513,3407.0,3406.7,0.96962753]
[1721326835271,2.93505,3407.1,3406.7,0.96962753]
[1721326835476,2.93519,3407.0,3406.7,0.05115353]
[1721326835770,2.93519,3407.0,3406.8,0.05108285]
[1721326835984,2.93502,3407.2,3406.5,2.93555]
[1721326836269,2.93505,3407.1,3406.9,0.05101216]
[1721326836481,2.93514,3407.0,3406.4,5.69934]
[1721326836627,2.93514,3407.0,3406.5,1.119928]
[1721326836827,2.93503,3407.2,3406.5,4.055478]
[1721326837357,2.93505,3407.1,3406.5,4.055478]
[1721326837558,2.9351,3407.1,3406.6,0.9754818]
[1721326837732,5.87023,3407.1,3406.6,0.9754818]
[1721326838236,2.9351,3407.1,3406.6,0.9754818]
[1721326839959,5.86985,3407.3,3406.6,3.9109518]
[1721326840164,2.93491,3407.3,3406.6,3.9109518]
[1721326840386,2.93491,3407.3,3406.7,4.02607209]
[1721326840939,2.93491,3407.3,3406.8,0.05109298]
[1721326841342,2.93491,3407.3,3406.7,4.02612209]
[1721326841544,2.9349,3407.3,3406.9,0.05102229]
[1721326841760,2.9351,3407.1,3406.8,0.05109298]
[1721326841942,2.9351,3407.1,3407.0,0.05095161]
[1721326842145,2.9351,3407.1,3405.9,3.0]
[1721326842146,2.93482,3407.4,3406.0,5.65544]
[1721326842431,2.93539,3406.8,3406.1,7.095056]
[1721326842877,2.93544,3406.7,3406.1,1.159156]
[1721326843235,2.93544,3406.7,3406.1,4.095056]
[1721326843548,2.93548,3406.6,3406.1,1.159156]
[1721326843762,2.93538,3406.8,3406.0,2.7195]
[1721326843966,2.93545,3406.7,3406.1,3.4859]
[1721326844800,2.3965,3407.1,3405.5,3.2941]
[1721326844975,2.93573,3406.4,3405.7,2.9362]
[1721326845182,2.93573,3406.4,3405.8,0.55]
[1721326845474,2.93575,3406.3,3405.9,0.34862]
[1721326845644,5.87146,3406.4,3405.9,0.34862]
[1721326845976,2.93561,3406.5,3405.9,0.34862]
[1721326846475,2.93526,3406.9,3405.9,3.28463]
[1721326846790,2.93526,3406.9,3406.1,2.4591]
[1721326846939,2.93526,3406.9,3406.2,0.629373]
[1721326847276,5.37115,3407.6,3406.2,0.629373]
[1721326847277,2.93509,3407.1,3406.2,0.629373]
[1721326847460,2.93509,3407.1,3406.3,3.48566]
[1721326847665,2.93509,3407.1,3406.5,2.93556]
[1721326848374,2.038,3407.8,3406.3,3.48566]
[1721326848375,2.2681,3408.5,3406.6,0.55]
[1721326848605,2.2681,3408.5,3407.1,5.39688]
[1721326848606,2.93441,3407.9,3407.1,5.39688]
[1721326848805,2.93441,3407.9,3407.2,0.55]
[1721326848992,2.93441,3407.9,3407.3,2.93487]
[1721326849195,2.93413,3408.2,3407.5,2.93469]
[1721326849398,2.93413,3408.2,3407.6,0.586956]
[1721326849574,2.93418,3408.1,3407.6,0.586956]
[1721326850708,2.93449,3407.8,3406.9,2.93518]
[1721326850919,2.93449,3407.8,3407.0,3.48511]
[1721326850920,2.93459,3407.7,3407.0,3.48511]
[1721326851407,2.9343,3408.0,3407.1,2.93503]
[1721326851613,2.9343,3408.0,3406.7,0.39431]
[1721326851614,2.93478,3407.4,3406.7,3.32967]
[1721326851767,2.93464,3407.6,3406.8,1.755521]
[1721326852091,2.93496,3407.3,3406.8,1.205521]
[1721326852710,2.9347,3407.5,3406.8,1.205521]
[1721326852884,2.9347,3407.5,3406.9,2.9352]
[1721326853206,2.93456,3407.7,3407.1,2.93504]
[1721326853405,2.93456,3407.7,3407.2,0.642024]
[1721326853902,2.93449,3407.8,3407.2,0.642024]
[1721326854109,2.93453,3407.7,3407.2,0.642024]
[1721326854885,5.86881,3407.9,3407.2,0.642024]
[1721326855087,2.93445,3407.8,3407.2,3.576984]
[1721326855287,10.43434,3408.0,3407.3,3.6410054]
[1721326855698,7.5,3408.0,3407.4,0.55]
[1721326856009,10.43428,3408.0,3407.5,0.04954988]
[1721326856214,7.5,3408.0,3407.5,0.04954988]
[1721326856509,10.43427,3408.0,3407.5,0.04954988]
[1721326857117,2.9338,3408.6,3407.9,2.9343]
[1721326857327,2.9338,3408.6,3407.7,2.93449]
[1721326857479,2.497,3408.9,3408.0,0.04919665]
[1721326857480,2.93386,3408.5,3408.0,0.04919665]
[1721326857979,2.93361,3408.8,3408.0,0.04919665]
[1721326857980,2.93372,3408.7,3408.1,2.93418]
[1721326858330,2.93372,3408.7,3408.1,2.98330602]
[1721326858494,7.5,3409.0,3408.1,3.57507268]
[1721326858835,2.93374,3408.7,3408.1,0.64089268]
[1721326858982,2.93382,3408.6,3408.1,0.04912602]
[1721326859182,2.93398,3408.4,3407.7,2.93448]
[1721326859377,10.43344,3409.0,3408.2,0.04900139]
[1721326859378,5.86802,3408.3,3408.2,0.04900139]
[1721326859600,2.038,3408.9,3407.1,3.2291]
[1721326859601,2.93433,3408.0,3407.2,2.93491]
[1721326859805,2.93435,3407.9,3407.3,3.0]
[1721326860023,2.93435,3407.9,3407.3,0.0496372]
[1721326860219,2.93435,3407.9,3407.3,2.9844872]
[1721326860385,2.93444,3407.8,3407.3,0.0496372]
[1721326860726,2.93449,3407.8,3407.3,0.0496372]
[1721326860880,2.93478,3407.4,3407.3,0.0496372]
[1721326861082,2.93478,3407.4,3407.0,0.2941]
[1721326861083,2.93418,3408.1,3407.0,0.2941]
[1721326861419,2.2573,3408.5,3407.1,0.04976773]
[1721326861420,2.93458,3407.7,3407.1,0.04976773]
[1721326862197,2.9344,3407.9,3407.1,0.04976773]
[1721326862402,2.9345,3407.8,3407.2,2.93495]
[1721326862617,2.93421,3408.1,3407.2,3.5766336]
[1721326862923,2.93421,3408.1,3407.5,2.9347]
[1721326863087,2.93421,3408.1,3407.2,3.5766036]
[1721326863088,8.19118,3408.5,3407.3,2.9348]
[1721326863286,8.19118,3408.5,3407.3,0.04963449]
[1721326863287,2.9345,3407.8,3407.3,0.04963449]
[1721326863491,2.93418,3408.1,3407.4,2.93478]
[1721326863913,2.93418,3408.1,3407.5,0.04948304]
[1721326864289,5.86862,3408.0,3407.5,0.04948304]
[1721326864719,2.93436,3407.9,3407.6,0.04940632]
[1721326864925,2.93453,3407.7,3407.6,0.04940632]
[1721326865124,2.93453,3407.7,3407.1,2.93499]
[1721326865302,2.93489,3407.3,3406.7,2.93538]
[1721326865690,2.93489,3407.3,3406.8,0.04997166]
[1721326865691,2.93487,3407.3,3406.8,0.04997166]
[1721326866095,2.93487,3407.3,3406.9,0.04990098]
[1721326866338,2.93513,3407.0,3406.9,0.04990098]
[1721326866630,2.93502,3407.2,3406.5,2.93549]
[1721326866790,2.93502,3407.2,3406.9,0.04990098]
[1721326866991,2.93502,3407.2,3406.5,2.93549]
[1721326867227,2.93502,3407.2,3407.0,0.0498303]
[1721326867530,2.93502,3407.2,3406.4,2.4579]
[1721326867531,2.93514,3407.0,3406.4,2.4579]
[1721326867710,2.93514,3407.0,3406.5,0.832922]
[1721326867907,2.93502,3407.2,3406.5,0.832922]
[1721326868110,2.93482,3407.4,3406.8,2.9353]
[1721326868317,2.93487,3407.3,3406.5,3.768442]
[1721326868516,2.93487,3407.3,3406.7,2.93538]
[1721326868720,2.93487,3407.3,3406.7,3.8515522]
[1721326869194,2.93496,3407.2,3406.7,3.8515522]
[1721326869729,2.2889,3408.1,3406.9,2.93517]
[1721326869928,3.0,3407.9,3406.9,2.93517]
[1721326870108,2.93458,3407.7,3406.9,2.93517]
[1721326870303,2.93458,3407.7,3407.0,2.93509]
[1721326870846,2.93458,3407.7,3407.1,2.93502]
[1721326871155,2.93458,3407.7,3407.1,2.98477963]
[1721326871648,5.93439,3407.9,3407.1,0.04975963]
[1721326871649,2.93487,3407.4,3407.1,0.04975963]
[1721326871998,5.86992,3407.2,3407.1,0.04975963]
[1721326872200,2.93562,3406.5,3405.7,5.90161041]
[1721326872396,2.93565,3406.4,3405.8,3.55183429]
[1721326872602,2.93565,3406.4,3405.8,0.61567429]
[1721326873028,9.134234,3407.2,3405.8,0.61567429]
[1721326873029,2.93543,3406.7,3405.8,0.61567429]
[1721326873223,2.93543,3406.7,3405.9,2.93603]
[1721326873426,2.93548,3406.6,3406.0,2.93599]
[1721326873827,12.069234,3407.2,3405.9,0.65170947]
[1721326873828,9.134234,3407.2,3406.1,2.93587]
[1721326874142,3.0,3407.1,3406.1,2.93587]
[1721326874437,1.634234,3407.2,3406.0,2.93597]
[1721326874438,4.634234,3407.2,3406.0,2.93597]
[1721326874607,2.93545,3406.7,3406.0,2.93597]
[1721326874949,2.93545,3406.7,3406.1,0.35876795]
[1721326875250,2.93548,3406.6,3406.1,0.35876795]
[1721326875415,2.93573,3406.3,3405.7,2.04187897]
[1721326875742,2.93563,3406.5,3405.7,4.97812897]
[1721326875940,2.93572,3406.4,3405.7,4.97812897]
[1721326876112,2.038,3406.9,3405.7,2.04187897]
[1721326876318,2.93542,3406.7,3405.7,2.04187897]
[1721326876503,2.93591,3406.1,3405.7,2.04187897]
[1721326876704,2.93606,3406.0,3405.7,2.04187897]
[1721326877143,2.93591,3406.1,3405.7,2.04187897]
[1721326877627,2.93591,3406.1,3405.3,5.30648]
[1721326877941,2.93599,3406.0,3405.4,3.496548]
[1721326878148,2.93565,3406.4,3405.5,2.93636]
[1721326878352,2.93565,3406.4,3405.7,2.9362]
[1721326878545,2.93591,3406.1,3405.5,2.93636]
[1721326878758,2.93606,3406.0,3405.6,0.9096968]
[1721326878951,2.93591,3406.1,3405.4,0.560058]
[1721326878952,2.93613,3405.9,3405.4,0.560058]
[1721326879649,2.93619,3405.8,3405.4,0.560058]
[1721326879891,2.93586,3406.2,3405.0,2.93682]
[1721326880064,2.9361,3405.9,3405.1,2.93674]
[1721326880217,2.93642,3405.5,3404.8,5.40385]
[1721326880417,2.93642,3405.5,3404.8,8.3408]
[1721326880617,2.93642,3405.5,3404.9,3.80042]
[1721326881318,2.038,3406.1,3404.7,0.2941]
[1721326881528,2.93665,3405.3,3404.7,2.93706]
[1721326882127,5.87296,3405.5,3404.7,2.93706]
[1721326882327,2.93651,3405.4,3404.7,2.93706]
[1721326882524,2.93651,3405.4,3404.7,3.791943]
[1721326882723,2.93646,3405.5,3404.8,2.93701]
[1721326883042,2.93653,3405.4,3404.7,3.791943]
[1721326883611,2.9367,3405.2,3404.7,0.854883]
[1721326883816,2.93685,3405.1,3404.5,2.93726]
[1721326884019,2.93685,3405.0,3404.3,2.9374]
[1721326884252,2.9371,3404.8,3404.1,2.93759]
[1721326884554,2.9371,3404.8,3404.0,0.0557]
[1721326884555,2.93726,3404.6,3404.0,0.0557]
[1721326884720,5.87416,3404.8,3404.0,3.823996]
[1721326885058,2.93713,3404.7,3404.0,3.823996]
[1721326885616,2.93707,3404.8,3404.0,0.886286]
[1721326885617,2.93723,3404.6,3404.0,0.886286]
[1721326885861,2.93723,3404.6,3404.1,0.04990333]
[1721326886479,2.93718,3404.7,3404.1,0.04990333]
[1721326886792,2.93718,3404.7,3404.2,0.62483893]
[1721326886992,2.93674,3405.2,3404.4,2.93737]
[1721326887282,2.93653,3405.4,3404.6,2.93719]
[1721326887477,2.93677,3405.1,3404.6,0.59242817]
[1721326887679,2.93677,3405.1,3404.7,0.04951506]
[1721326888259,2.93659,3405.4,3404.7,2.98661506]
[1721326888466,2.93659,3405.4,3404.7,0.04951506]
[1721326888666,2.93659,3405.4,3404.7,2.93711]
[1721326888866,2.93637,3405.6,3404.8,6.57001211]
[1721326889083,5.9362,3405.8,3404.8,3.63305211]
[1721326889255,3.0,3405.8,3405.0,2.93679]
[1721326889460,5.93621,3405.8,3405.0,2.93678]
[1721326889656,10.43586,3406.2,3405.1,0.049232]
[1721326889909,2.93466,3407.6,3405.2,0.55]
[1721326889910,2.93568,3406.4,3405.2,0.55]
[1721326890212,2.93568,3406.4,3405.5,2.93636]
[1721326890487,2.93568,3406.4,3405.7,2.93619]
[1721326890662,2.93551,3406.6,3405.7,2.93619]
[1721326890869,2.93556,3406.5,3405.9,2.93606]
[1721326891177,2.93565,3406.4,3406.0,0.0485519]
[1721326891345,2.93551,3406.6,3406.0,0.0485519]
[1721326891689,2.93558,3406.5,3405.8,3.463889]
[1721326892142,2.3605,3407.0,3405.9,0.04862262]
[1721326892143,2.93588,3406.2,3405.9,0.04862262]
[1721326892348,2.038,3406.9,3405.7,2.93619]
[1721326892349,2.93568,3406.4,3405.7,2.93619]
[1721326892590,2.9355,3406.6,3405.8,0.04862968]
[1721326892591,2.93573,3406.3,3405.8,0.04862968]